[Event "Titled Tuesday Blitz May 23 Late 2023"]
[White "Rustemov, Alexander"]
[Black "Grischuk, Alexander"]
[WhiteFideId "4119002"]
[BlackFideId "4126025"]
[WhiteElo "2864"]
[BlackElo "2721"]
[Result "0-1"]
[Round "08"]
[TimeControl "180+2"]
[Date "2023.05.23"]
[WhiteClock "0:00:00"]
[BlackClock "0:00:03"]

1. d4 {[%clk 0:03:00]}  g6 {[%clk 0:03:00]} 2. c4 {[%clk 0:03:01]}  Bg7 {[%clk 0:03:00]} 3. Nf3 {[%clk 0:03:01]}  d6 {[%clk 0:03:00]} 4. g3 {[%clk 0:03:02]}  Nf6 {[%clk 0:02:59]} 5. Bg2 {[%clk 0:03:02]}  O-O {[%clk 0:02:59]} 6. Nc3 {[%clk 0:03:03]}  Nbd7 {[%clk 0:02:59]} 7. O-O {[%clk 0:03:03]}  e5 {[%clk 0:03:00]} 8. e4 {[%clk 0:03:03]}  a6 {[%clk 0:02:58]} 9. Re1 {[%clk 0:03:02]}  exd4 {[%clk 0:02:52]} 10. Nxd4 {[%clk 0:03:02]}  Re8 {[%clk 0:02:52]} 11. h3 {[%clk 0:02:57]}  Rb8 {[%clk 0:02:52]} 12. a4 {[%clk 0:02:57]}  a5 {[%clk 0:02:51]} 13. Be3 {[%clk 0:02:50]}  Nc5 {[%clk 0:02:45]} 14. Qc2 {[%clk 0:02:50]}  c6 {[%clk 0:02:09]} 15. Rad1 {[%clk 0:02:47]}  Nfd7 {[%clk 0:02:10]} 16. f4 {[%clk 0:02:42]}  Ra8 {[%clk 0:01:40]} 17. Bf2 {[%clk 0:02:38]}  Qc7 {[%clk 0:01:36]} 18. Ndb5 {[%clk 0:02:21]}  cxb5 {[%clk 0:01:36]} 19. Nxb5 {[%clk 0:02:21]}  Qb8 {[%clk 0:01:35]} 20. Nxd6 {[%clk 0:02:22]}  Re7 {[%clk 0:01:34]} 21. e5 {[%clk 0:02:21]}  Ra6 {[%clk 0:01:23]} 22. Bd5 {[%clk 0:02:03]}  Rc6 {[%clk 0:00:47]} 23. Nxf7 {[%clk 0:02:00]}  Rxf7 {[%clk 0:00:45]} 24. e6 {[%clk 0:02:00]}  Nxe6 {[%clk 0:00:45]} 25. Rxe6 {[%clk 0:01:55]}  Rxe6 {[%clk 0:00:36]} 26. Bxe6 {[%clk 0:01:55]}  Qc7 {[%clk 0:00:37]} 27. Qd3 {[%clk 0:01:40]}  Nf8 {[%clk 0:00:34]} 28. Bxf7+ {[%clk 0:01:34]}  Qxf7 {[%clk 0:00:35]} 29. Kh2 {[%clk 0:01:26]}  Be6 {[%clk 0:00:34]} 30. b3 {[%clk 0:01:25]}  h5 {[%clk 0:00:33]} 31. Bd4 {[%clk 0:01:21]}  h4 {[%clk 0:00:30]} 32. Bxg7 {[%clk 0:01:19]}  hxg3+ {[%clk 0:00:31]} 33. Kxg3 {[%clk 0:01:17]}  Kxg7 {[%clk 0:00:31]} 34. Qc3+ {[%clk 0:01:16]}  Kh7 {[%clk 0:00:30]} 35. Qxa5 {[%clk 0:01:16]}  Nd7 {[%clk 0:00:30]} 36. Qc7 {[%clk 0:01:13]}  Qg7 {[%clk 0:00:23]} 37. Rd3 {[%clk 0:01:07]}  Bf5 {[%clk 0:00:22]} 38. Re3 {[%clk 0:00:53]}  Qd4 {[%clk 0:00:22]} 39. Re7+ {[%clk 0:00:53]}  Kh6 {[%clk 0:00:23]} 40. Qxb7 {[%clk 0:00:54]}  Nf6 {[%clk 0:00:19]} 41. Qf3 {[%clk 0:00:51]}  Qg1+ {[%clk 0:00:15]} 42. Qg2 {[%clk 0:00:49]}  Nh5+ {[%clk 0:00:14]} 43. Kf3 {[%clk 0:00:50]}  Qd1+ {[%clk 0:00:13]} 44. Qe2 {[%clk 0:00:47]}  Qxb3+ {[%clk 0:00:13]} 45. Re3 {[%clk 0:00:45]}  Qb7+ {[%clk 0:00:13]} 46. Kf2 {[%clk 0:00:44]}  Nxf4 {[%clk 0:00:13]} 47. Qf3 {[%clk 0:00:42]}  Qb2+ {[%clk 0:00:13]} 48. Kf1 {[%clk 0:00:34]}  Qc1+ {[%clk 0:00:10]} 49. Kf2 {[%clk 0:00:31]}  Qd2+ {[%clk 0:00:10]} 50. Kf1 {[%clk 0:00:31]}  Qc1+ {[%clk 0:00:07]} 51. Kf2 {[%clk 0:00:31]}  Qxc4 {[%clk 0:00:07]} 52. h4 {[%clk 0:00:22]}  Qxa4 {[%clk 0:00:06]} 53. Qg3 {[%clk 0:00:20]}  Qa2+ {[%clk 0:00:06]} 54. Kf1 {[%clk 0:00:19]}  Qb1+ {[%clk 0:00:06]} 55. Re1 {[%clk 0:00:17]}  Qb5+ {[%clk 0:00:06]} 56. Kg1 {[%clk 0:00:14]}  Qc5+ {[%clk 0:00:06]} 57. Kh2 {[%clk 0:00:14]}  Qc2+ {[%clk 0:00:06]} 58. Kg1 {[%clk 0:00:11]}  Ne2+ {[%clk 0:00:06]} 59. Rxe2 {[%clk 0:00:10]}  Qxe2 {[%clk 0:00:07]} 60. Qg5+ {[%clk 0:00:10]}  Kh7 {[%clk 0:00:05]} 61. Qf6 {[%clk 0:00:09]}  Qe6 {[%clk 0:00:04]} 62. Qd8 {[%clk 0:00:05]}  Bg4 {[%clk 0:00:03]} 63. Qc7+ {[%clk 0:00:03]}  Qd7 {[%clk 0:00:04]} 64. Qe5 {[%clk 0:00:02]}  Bh5 {[%clk 0:00:04]} 65. Qg5 {[%clk 0:00:00]}  Qg4+ {[%clk 0:00:03]} 0-1


[Site "https://www.chess.com"]

[Event "Titled Tuesday Blitz May 23 Late 2023"]
[White "Bortnyk, Mykola"]
[Black "benny_aizenberg"]
[WhiteFideId "14120836"]
[WhiteElo "2582"]
[BlackElo "2705"]
[Result "1-0"]
[Round "08"]
[TimeControl "180+2"]
[Date "2023.05.23"]
[WhiteClock "0:01:12"]
[BlackClock "0:00:19"]

1. e4 {[%clk 0:03:00]}  c5 {[%clk 0:02:59]} 2. c3 {[%clk 0:03:01]}  Nf6 {[%clk 0:02:57]} 3. e5 {[%clk 0:03:01]}  Nd5 {[%clk 0:02:58]} 4. Na3 {[%clk 0:02:59]}  d6 {[%clk 0:02:56]} 5. Nf3 {[%clk 0:02:57]}  Nc6 {[%clk 0:02:51]} 6. exd6 {[%clk 0:02:51]}  e6 {[%clk 0:02:47]} 7. Nc4 {[%clk 0:02:49]}  b5 {[%clk 0:02:35]} 8. Nce5 {[%clk 0:02:44]}  Nxe5 {[%clk 0:02:31]} 9. Nxe5 {[%clk 0:02:45]}  a6 {[%clk 0:02:30]} 10. Qf3 {[%clk 0:02:38]}  Qf6 {[%clk 0:02:13]} 11. d7+ {[%clk 0:02:18]}  Bxd7 {[%clk 0:02:10]} 12. Qxf6 {[%clk 0:02:18]}  gxf6 {[%clk 0:01:58]} 13. Nxd7 {[%clk 0:02:19]}  Kxd7 {[%clk 0:01:58]} 14. a4 {[%clk 0:02:17]}  b4 {[%clk 0:01:54]} 15. a5 {[%clk 0:02:16]}  Bh6 {[%clk 0:01:50]} 16. Bc4 {[%clk 0:02:12]}  Rhg8 {[%clk 0:01:47]} 17. g3 {[%clk 0:02:12]}  Ne7 {[%clk 0:01:40]} 18. f4 {[%clk 0:02:03]}  Nc6 {[%clk 0:01:38]} 19. d3 {[%clk 0:02:02]}  Bf8 {[%clk 0:01:36]} 20. Kf2 {[%clk 0:02:00]}  Bd6 {[%clk 0:01:35]} 21. Be3 {[%clk 0:01:59]}  Rgb8 {[%clk 0:01:20]} 22. Rhd1 {[%clk 0:01:57]}  bxc3 {[%clk 0:01:19]} 23. bxc3 {[%clk 0:01:58]}  Rb2+ {[%clk 0:01:19]} 24. Kg1 {[%clk 0:01:36]}  Re2 {[%clk 0:01:15]} 25. Bd2 {[%clk 0:01:29]}  h5 {[%clk 0:01:00]} 26. d4 {[%clk 0:01:24]}  Re4 {[%clk 0:01:00]} 27. Bd3 {[%clk 0:01:23]}  f5 {[%clk 0:00:55]} 28. Bxe4 {[%clk 0:01:21]}  fxe4 {[%clk 0:00:56]} 29. dxc5 {[%clk 0:01:21]}  Be7 {[%clk 0:00:51]} 30. Be3+ {[%clk 0:01:17]}  Kc7 {[%clk 0:00:51]} 31. f5 {[%clk 0:01:17]}  exf5 {[%clk 0:00:49]} 32. Rd5 {[%clk 0:01:17]}  Bf6 {[%clk 0:00:42]} 33. Bf4+ {[%clk 0:01:14]}  Kc8 {[%clk 0:00:42]} 34. Rd6 {[%clk 0:01:14]}  Bxc3 {[%clk 0:00:34]} 35. Rxc6+ {[%clk 0:01:14]}  Kd7 {[%clk 0:00:33]} 36. Rd6+ {[%clk 0:01:13]}  Ke7 {[%clk 0:00:33]} 37. Rb1 {[%clk 0:01:13]}  Bxa5 {[%clk 0:00:32]} 38. Rb7+ {[%clk 0:01:13]}  Kf8 {[%clk 0:00:31]} 39. Rf6 {[%clk 0:01:12]}  Bc3 {[%clk 0:00:30]} 40. Rfxf7+ {[%clk 0:01:10]}  Kg8 {[%clk 0:00:31]} 41. Rxf5 {[%clk 0:01:08]}  a5 {[%clk 0:00:30]} 42. Be5 {[%clk 0:01:08]}  Bxe5 {[%clk 0:00:22]} 43. Rxe5 {[%clk 0:01:09]}  a4 {[%clk 0:00:22]} 44. Rg5+ {[%clk 0:01:09]}  Kf8 {[%clk 0:00:22]} 45. Rxh5 {[%clk 0:01:10]}  Kg8 {[%clk 0:00:22]} 46. Rhh7 {[%clk 0:01:09]}  a3 {[%clk 0:00:22]} 47. Rbg7+ {[%clk 0:01:10]}  Kf8 {[%clk 0:00:22]} 48. Rh8+ {[%clk 0:01:10]}  Kxg7 {[%clk 0:00:22]} 49. Rxa8 {[%clk 0:01:11]}  e3 {[%clk 0:00:19]} 50. Rxa3 {[%clk 0:01:12]} 1-0


[Site "https://www.chess.com"]

[Event "Titled Tuesday Blitz May 23 Late 2023"]
[White "Gritsenko, Nikolai"]
[Black "Ibarra Jerez, Jose Carlos"]
[WhiteFideId "14112493"]
[BlackFideId "2226332"]
[WhiteElo "2389"]
[BlackElo "2638"]
[Result "0-1"]
[Round "08"]
[TimeControl "180+2"]
[Date "2023.05.23"]
[WhiteClock "0:00:23"]
[BlackClock "0:00:22"]

1. d4 {[%clk 0:03:00]}  Nf6 {[%clk 0:03:00]} 2. Bg5 {[%clk 0:03:00]}  d5 {[%clk 0:02:58]} 3. Nd2 {[%clk 0:02:59]}  c5 {[%clk 0:02:58]} 4. e3 {[%clk 0:02:57]}  Nc6 {[%clk 0:02:58]} 5. c3 {[%clk 0:02:56]}  e5 {[%clk 0:02:56]} 6. dxe5 {[%clk 0:02:56]}  Nxe5 {[%clk 0:02:57]} 7. Ngf3 {[%clk 0:02:56]}  Nc6 {[%clk 0:02:58]} 8. Bd3 {[%clk 0:02:52]}  Be7 {[%clk 0:02:57]} 9. O-O {[%clk 0:02:52]}  O-O {[%clk 0:02:54]} 10. Qc2 {[%clk 0:02:40]}  h6 {[%clk 0:02:53]} 11. Bh4 {[%clk 0:02:40]}  c4 {[%clk 0:02:47]} 12. Bf5 {[%clk 0:02:38]}  Nd7 {[%clk 0:02:36]} 13. Bxe7 {[%clk 0:02:34]}  Nxe7 {[%clk 0:02:37]} 14. Bxd7 {[%clk 0:02:29]}  Bxd7 {[%clk 0:02:36]} 15. Nd4 {[%clk 0:02:29]}  Ng6 {[%clk 0:02:29]} 16. N2f3 {[%clk 0:02:28]}  Re8 {[%clk 0:02:28]} 17. Rfd1 {[%clk 0:02:23]}  Qf6 {[%clk 0:02:27]} 18. Rd2 {[%clk 0:02:19]}  Rad8 {[%clk 0:02:25]} 19. Rad1 {[%clk 0:02:13]}  Re7 {[%clk 0:02:09]} 20. h3 {[%clk 0:02:02]}  Rde8 {[%clk 0:02:09]} 21. b3 {[%clk 0:01:58]}  Rc8 {[%clk 0:02:08]} 22. Qb2 {[%clk 0:01:45]}  b6 {[%clk 0:02:02]} 23. Qa3 {[%clk 0:01:40]}  Rc7 {[%clk 0:02:01]} 24. bxc4 {[%clk 0:01:35]}  dxc4 {[%clk 0:01:56]} 25. Qb4 {[%clk 0:01:31]}  Rc5 {[%clk 0:01:49]} 26. a4 {[%clk 0:01:27]}  Re8 {[%clk 0:01:34]} 27. Nb5 {[%clk 0:01:12]}  Bxh3 {[%clk 0:01:26]} 28. Rd6 {[%clk 0:01:07]}  Qf5 {[%clk 0:00:58]} 29. R1d4 {[%clk 0:00:55]}  a5 {[%clk 0:00:45]} 30. Qb2 {[%clk 0:00:50]}  Qh5 {[%clk 0:00:45]} 31. Nc7 {[%clk 0:00:45]}  Rxc7 {[%clk 0:00:41]} 32. Qxb6 {[%clk 0:00:43]}  Rce7 {[%clk 0:00:39]} 33. R6d5 {[%clk 0:00:39]}  Bf5 {[%clk 0:00:31]} 34. Qc5 {[%clk 0:00:34]}  Rb7 {[%clk 0:00:26]} 35. Rd1 {[%clk 0:00:33]}  Ne7 {[%clk 0:00:23]} 36. e4 {[%clk 0:00:32]}  Nxd5 {[%clk 0:00:22]} 37. Qxd5 {[%clk 0:00:23]}  Rd7 {[%clk 0:00:22]} 0-1


[Site "https://www.chess.com"]

[Event "Titled Tuesday Blitz May 23 Late 2023"]
[White "Zhigalko, Sergei"]
[Black "Horvath, Dominik"]
[WhiteFideId "13502956"]
[BlackFideId "1642561"]
[WhiteElo "2626"]
[BlackElo "2407"]
[Result "1-0"]
[Round "08"]
[TimeControl "180+2"]
[Date "2023.05.23"]
[WhiteClock "0:00:22"]
[BlackClock "0:00:35"]

1. e4 {[%clk 0:03:00]}  c5 {[%clk 0:02:43]} 2. Nf3 {[%clk 0:03:01]}  Nc6 {[%clk 0:02:42]} 3. c3 {[%clk 0:03:01]}  Nf6 {[%clk 0:02:32]} 4. e5 {[%clk 0:03:01]}  Nd5 {[%clk 0:02:33]} 5. Bc4 {[%clk 0:03:02]}  Nb6 {[%clk 0:02:32]} 6. Bb3 {[%clk 0:03:03]}  d5 {[%clk 0:02:30]} 7. exd6 {[%clk 0:03:03]}  Qxd6 {[%clk 0:02:30]} 8. O-O {[%clk 0:03:03]}  c4 {[%clk 0:02:30]} 9. Bc2 {[%clk 0:03:03]}  Bg4 {[%clk 0:02:30]} 10. Re1 {[%clk 0:03:04]}  O-O-O {[%clk 0:02:27]} 11. b3 {[%clk 0:03:03]}  Qf6 {[%clk 0:02:10]} 12. Na3 {[%clk 0:02:56]}  Nd5 {[%clk 0:02:07]} 13. Bb2 {[%clk 0:02:31]}  Nf4 {[%clk 0:02:01]} 14. Nxc4 {[%clk 0:02:20]}  b5 {[%clk 0:01:56]} 15. Ne3 {[%clk 0:02:16]}  Bh5 {[%clk 0:01:53]} 16. d4 {[%clk 0:02:03]}  e5 {[%clk 0:01:53]} 17. Be4 {[%clk 0:02:01]}  exd4 {[%clk 0:01:41]} 18. cxd4 {[%clk 0:01:55]}  Kb8 {[%clk 0:01:41]} 19. Rc1 {[%clk 0:01:21]}  Nb4 {[%clk 0:01:22]} 20. a3 {[%clk 0:01:03]}  Bxf3 {[%clk 0:01:22]} 21. Qxf3 {[%clk 0:00:36]}  Nbd3 {[%clk 0:01:09]} 22. Ng4 {[%clk 0:00:35]}  Nxe1 {[%clk 0:00:59]} 23. Rxe1 {[%clk 0:00:36]}  Qg5 {[%clk 0:00:35]} 24. h4 {[%clk 0:00:22]} 1-0


[Site "https://www.chess.com"]

[Event "Titled Tuesday Blitz May 23 Late 2023"]
[White "Dardha, Daniel"]
[Black "Domingo Nunez, Ruben"]
[WhiteFideId "240990"]
[BlackFideId "22245570"]
[WhiteElo "2581"]
[BlackElo "2404"]
[Result "1-0"]
[Round "08"]
[TimeControl "180+2"]
[Date "2023.05.23"]
[WhiteClock "0:01:37"]
[BlackClock "0:00:10"]

1. e4 {[%clk 0:03:00]}  g6 {[%clk 0:03:00]} 2. Qg4 {[%clk 0:03:01]}  Nf6 {[%clk 0:02:59]} 3. Qh4 {[%clk 0:02:59]}  d6 {[%clk 0:02:59]} 4. Nc3 {[%clk 0:02:57]}  c5 {[%clk 0:02:59]} 5. Bc4 {[%clk 0:02:57]}  Nc6 {[%clk 0:02:59]} 6. d3 {[%clk 0:02:57]}  a6 {[%clk 0:02:59]} 7. a4 {[%clk 0:02:55]}  Nd4 {[%clk 0:02:58]} 8. Bb3 {[%clk 0:02:53]}  Nxb3 {[%clk 0:02:52]} 9. cxb3 {[%clk 0:02:54]}  Be6 {[%clk 0:02:53]} 10. f4 {[%clk 0:02:48]}  Bxb3 {[%clk 0:02:53]} 11. Nf3 {[%clk 0:02:48]}  Bg7 {[%clk 0:02:38]} 12. f5 {[%clk 0:02:48]}  gxf5 {[%clk 0:02:29]} 13. exf5 {[%clk 0:02:35]}  Nd5 {[%clk 0:02:04]} 14. Ra3 {[%clk 0:02:25]}  Nxc3 {[%clk 0:00:51]} 15. Rxb3 {[%clk 0:02:23]}  Nd5 {[%clk 0:00:52]} 16. Rxb7 {[%clk 0:02:19]}  Rb8 {[%clk 0:00:47]} 17. Rxb8 {[%clk 0:02:17]}  Qxb8 {[%clk 0:00:47]} 18. O-O {[%clk 0:02:15]}  Qb3 {[%clk 0:00:46]} 19. Qg4 {[%clk 0:02:05]}  Bf6 {[%clk 0:00:44]} 20. Qe4 {[%clk 0:02:00]}  Kd7 {[%clk 0:00:20]} 21. Nd2 {[%clk 0:01:58]}  Qb7 {[%clk 0:00:21]} 22. Nc4 {[%clk 0:01:52]}  Rg8 {[%clk 0:00:21]} 23. Ne3 {[%clk 0:01:46]}  e6 {[%clk 0:00:15]} 24. fxe6+ {[%clk 0:01:44]}  fxe6 {[%clk 0:00:14]} 25. Rxf6 {[%clk 0:01:39]}  Qb3 {[%clk 0:00:10]} 26. Qxe6+ {[%clk 0:01:37]} 1-0


[Site "https://www.chess.com"]

[Event "Titled Tuesday Blitz May 23 Late 2023"]
[White "Vlassov, Nikolai"]
[Black "Remizov, Yaroslav"]
[WhiteFideId "4103360"]
[BlackFideId "34134015"]
[WhiteElo "2324"]
[BlackElo "2400"]
[Result "0-1"]
[Round "08"]
[TimeControl "180+2"]
[Date "2023.05.23"]
[WhiteClock "0:00:05"]
[BlackClock "0:00:07"]

1. e4 {[%clk 0:03:00]}  c5 {[%clk 0:02:58]} 2. c3 {[%clk 0:03:00]}  d5 {[%clk 0:02:58]} 3. exd5 {[%clk 0:03:00]}  Qxd5 {[%clk 0:02:57]} 4. d4 {[%clk 0:03:01]}  Nf6 {[%clk 0:02:54]} 5. Nf3 {[%clk 0:03:01]}  Nc6 {[%clk 0:02:49]} 6. Be3 {[%clk 0:02:58]}  Ng4 {[%clk 0:02:31]} 7. Nbd2 {[%clk 0:02:52]}  Nxe3 {[%clk 0:02:16]} 8. fxe3 {[%clk 0:02:52]}  Bd7 {[%clk 0:02:03]} 9. e4 {[%clk 0:01:57]}  Qh5 {[%clk 0:02:00]} 10. d5 {[%clk 0:01:56]}  Ne5 {[%clk 0:01:57]} 11. Nxe5 {[%clk 0:01:56]}  Qxe5 {[%clk 0:01:56]} 12. Bd3 {[%clk 0:01:51]}  O-O-O {[%clk 0:01:51]} 13. O-O {[%clk 0:01:41]}  f6 {[%clk 0:01:47]} 14. Nc4 {[%clk 0:01:32]}  Qc7 {[%clk 0:01:40]} 15. b4 {[%clk 0:01:19]}  e6 {[%clk 0:01:38]} 16. Ne3 {[%clk 0:01:16]}  Kb8 {[%clk 0:01:28]} 17. Qf3 {[%clk 0:01:14]}  cxb4 {[%clk 0:01:22]} 18. cxb4 {[%clk 0:01:14]}  Bxb4 {[%clk 0:01:23]} 19. Kh1 {[%clk 0:01:05]}  Bc5 {[%clk 0:01:17]} 20. Rfc1 {[%clk 0:01:03]}  Qe5 {[%clk 0:01:09]} 21. Rab1 {[%clk 0:00:59]}  Qd4 {[%clk 0:00:49]} 22. Nc2 {[%clk 0:00:52]}  Qa4 {[%clk 0:00:48]} 23. e5 {[%clk 0:00:48]}  fxe5 {[%clk 0:00:44]} 24. dxe6 {[%clk 0:00:44]}  Bc6 {[%clk 0:00:44]} 25. Qf5 {[%clk 0:00:40]}  Ka8 {[%clk 0:00:28]} 26. Qxe5 {[%clk 0:00:36]}  Bxg2+ {[%clk 0:00:23]} 27. Kxg2 {[%clk 0:00:33]}  Qg4+ {[%clk 0:00:18]} 28. Qg3 {[%clk 0:00:31]}  Qxg3+ {[%clk 0:00:18]} 29. hxg3 {[%clk 0:00:30]}  Rxd3 {[%clk 0:00:18]} 30. Ne1 {[%clk 0:00:25]}  Rd2+ {[%clk 0:00:14]} 31. Kh3 {[%clk 0:00:25]}  b6 {[%clk 0:00:14]} 32. Nf3 {[%clk 0:00:25]}  Rxa2 {[%clk 0:00:13]} 33. Re1 {[%clk 0:00:22]}  Re8 {[%clk 0:00:13]} 34. Re4 {[%clk 0:00:21]}  Kb7 {[%clk 0:00:11]} 35. Rd1 {[%clk 0:00:18]}  Ra3 {[%clk 0:00:08]} 36. Kg2 {[%clk 0:00:17]}  Re7 {[%clk 0:00:04]} 37. Ng5 {[%clk 0:00:13]}  Kc7 {[%clk 0:00:04]} 38. Nxh7 {[%clk 0:00:12]}  Bd6 {[%clk 0:00:04]} 39. Nf8 {[%clk 0:00:11]}  Rxg3+ {[%clk 0:00:03]} 40. Kf2 {[%clk 0:00:11]}  Rc3 {[%clk 0:00:04]} 41. Red4 {[%clk 0:00:08]}  Bc5 {[%clk 0:00:03]} 42. Ke2 {[%clk 0:00:06]}  Bxd4 {[%clk 0:00:04]} 43. Rxd4 {[%clk 0:00:07]}  Rc6 {[%clk 0:00:04]} 44. Kd2 {[%clk 0:00:07]}  Rd6 {[%clk 0:00:04]} 45. Ke3 {[%clk 0:00:05]}  Rxd4 {[%clk 0:00:04]} 46. Kxd4 {[%clk 0:00:06]}  Kd6 {[%clk 0:00:05]} 47. Ng6 {[%clk 0:00:05]}  Rxe6 {[%clk 0:00:05]} 48. Nh4 {[%clk 0:00:06]}  Rh6 {[%clk 0:00:05]} 49. Nf5+ {[%clk 0:00:06]}  Kc6 {[%clk 0:00:05]} 50. Nxg7 {[%clk 0:00:07]}  Rh4+ {[%clk 0:00:05]} 51. Kc3 {[%clk 0:00:07]}  Rh3+ {[%clk 0:00:05]} 52. Kc4 {[%clk 0:00:07]}  a5 {[%clk 0:00:05]} 53. Ne6 {[%clk 0:00:06]}  b5+ {[%clk 0:00:06]} 54. Kd4 {[%clk 0:00:06]}  b4 {[%clk 0:00:06]} 55. Kc4 {[%clk 0:00:06]}  Rc3+ {[%clk 0:00:06]} 56. Kd4 {[%clk 0:00:06]}  Kb5 {[%clk 0:00:06]} 57. Nf4 {[%clk 0:00:07]}  Rc4+ {[%clk 0:00:06]} 58. Ke3 {[%clk 0:00:05]}  Rxf4 {[%clk 0:00:07]} 0-1


[Site "https://www.chess.com"]

[Event "Titled Tuesday Blitz May 23 Late 2023"]
[White "Goltsev, Dmitry"]
[Black "Krzyzanowski, Marcin"]
[WhiteFideId "24176710"]
[BlackFideId "1132199"]
[WhiteElo "2356"]
[BlackElo "2471"]
[Result "0-1"]
[Round "08"]
[TimeControl "180+2"]
[Date "2023.05.23"]
[WhiteClock "0:00:00"]
[BlackClock "0:00:04"]

1. e4 {[%clk 0:03:00]}  c5 {[%clk 0:02:59]} 2. Nf3 {[%clk 0:03:00]}  Nc6 {[%clk 0:02:59]} 3. d4 {[%clk 0:03:01]}  cxd4 {[%clk 0:02:59]} 4. Nxd4 {[%clk 0:03:01]}  e5 {[%clk 0:02:59]} 5. Nf5 {[%clk 0:03:01]}  d5 {[%clk 0:02:58]} 6. Qxd5 {[%clk 0:03:01]}  Qxd5 {[%clk 0:02:54]} 7. exd5 {[%clk 0:03:02]}  Bxf5 {[%clk 0:02:52]} 8. dxc6 {[%clk 0:03:02]}  bxc6 {[%clk 0:02:51]} 9. Bd3 {[%clk 0:03:02]}  Bxd3 {[%clk 0:02:48]} 10. cxd3 {[%clk 0:03:03]}  Nf6 {[%clk 0:02:44]} 11. Nc3 {[%clk 0:03:02]}  Bb4 {[%clk 0:02:43]} 12. Ke2 {[%clk 0:03:02]}  Rd8 {[%clk 0:02:36]} 13. Bg5 {[%clk 0:03:00]}  Bxc3 {[%clk 0:02:08]} 14. bxc3 {[%clk 0:02:55]}  Kd7 {[%clk 0:02:08]} 15. Bxf6 {[%clk 0:02:55]}  gxf6 {[%clk 0:02:08]} 16. Rab1 {[%clk 0:02:55]}  Rb8 {[%clk 0:02:04]} 17. Kd2 {[%clk 0:02:42]}  Rb6 {[%clk 0:01:59]} 18. Kc2 {[%clk 0:02:38]}  Rg8 {[%clk 0:01:55]} 19. g3 {[%clk 0:02:35]}  f5 {[%clk 0:01:52]} 20. Rb3 {[%clk 0:02:31]}  f4 {[%clk 0:01:42]} 21. Rhb1 {[%clk 0:02:04]}  Kc7 {[%clk 0:01:38]} 22. Re1 {[%clk 0:01:52]}  fxg3 {[%clk 0:01:26]} 23. hxg3 {[%clk 0:01:51]}  Rg5 {[%clk 0:01:23]} 24. f4 {[%clk 0:01:17]}  exf4 {[%clk 0:01:13]} 25. gxf4 {[%clk 0:01:18]}  Rg2+ {[%clk 0:01:12]} 26. Kb1 {[%clk 0:01:15]}  Kd6 {[%clk 0:00:55]} 27. Rh1 {[%clk 0:01:11]}  Rg7 {[%clk 0:00:45]} 28. Rh6+ {[%clk 0:01:04]}  Kd7 {[%clk 0:00:45]} 29. Rf6 {[%clk 0:00:53]}  h5 {[%clk 0:00:34]} 30. Rf5 {[%clk 0:00:48]}  Rh7 {[%clk 0:00:31]} 31. Kc2 {[%clk 0:00:23]}  h4 {[%clk 0:00:24]} 32. Ra3 {[%clk 0:00:17]}  a6 {[%clk 0:00:22]} 33. Rg5 {[%clk 0:00:16]}  h3 {[%clk 0:00:22]} 34. Rg1 {[%clk 0:00:15]}  h2 {[%clk 0:00:23]} 35. Rh1 {[%clk 0:00:16]}  c5 {[%clk 0:00:19]} 36. Rb3 {[%clk 0:00:08]}  Rg6 {[%clk 0:00:17]} 37. Rbb1 {[%clk 0:00:07]}  Rg2+ {[%clk 0:00:17]} 38. Kb3 {[%clk 0:00:06]}  Kc6 {[%clk 0:00:17]} 39. Rbf1 {[%clk 0:00:05]}  f5 {[%clk 0:00:15]} 40. a4 {[%clk 0:00:05]}  Rb7+ {[%clk 0:00:14]} 41. Kc4 {[%clk 0:00:04]}  Ra2 {[%clk 0:00:14]} 42. Ra1 {[%clk 0:00:03]}  Rxa1 {[%clk 0:00:08]} 43. Rxa1 {[%clk 0:00:04]}  Rg7 {[%clk 0:00:08]} 44. Rh1 {[%clk 0:00:04]}  Rg2 {[%clk 0:00:08]} 45. d4 {[%clk 0:00:04]}  cxd4 {[%clk 0:00:08]} 46. Kxd4 {[%clk 0:00:05]}  Kd6 {[%clk 0:00:07]} 47. c4 {[%clk 0:00:05]}  Rd2+ {[%clk 0:00:05]} 48. Ke3 {[%clk 0:00:05]}  Ra2 {[%clk 0:00:05]} 49. Kd4 {[%clk 0:00:05]}  a5 {[%clk 0:00:03]} 50. Rd1 {[%clk 0:00:02]}  Kc6 {[%clk 0:00:03]} 51. Rh1 {[%clk 0:00:02]}  Re2 {[%clk 0:00:02]} 52. Kd3 {[%clk 0:00:02]}  Rf2 {[%clk 0:00:02]} 53. Ke3 {[%clk 0:00:03]}  Ra2 {[%clk 0:00:02]} 54. Kd4 {[%clk 0:00:03]}  Rc2 {[%clk 0:00:02]} 55. Kd3 {[%clk 0:00:03]}  Rg2 {[%clk 0:00:02]} 56. Kd4 {[%clk 0:00:03]}  Kd6 {[%clk 0:00:02]} 57. Ke3 {[%clk 0:00:04]}  Kc5 {[%clk 0:00:02]} 58. Kd3 {[%clk 0:00:03]}  Ra2 {[%clk 0:00:02]} 59. Kc3 {[%clk 0:00:03]}  Rf2 {[%clk 0:00:02]} 60. Kd3 {[%clk 0:00:04]}  Kb4 {[%clk 0:00:03]} 61. Kd4 {[%clk 0:00:04]}  Rxf4+ {[%clk 0:00:03]} 62. Ke5 {[%clk 0:00:04]}  Rf2 {[%clk 0:00:04]} 63. Kd5 {[%clk 0:00:03]}  Rd2+ {[%clk 0:00:04]} 64. Ke5 {[%clk 0:00:04]}  Kxc4 {[%clk 0:00:04]} 65. Kxf5 {[%clk 0:00:04]}  Kb3 {[%clk 0:00:05]} 66. Ke4 {[%clk 0:00:04]}  Kxa4 {[%clk 0:00:05]} 67. Ke3 {[%clk 0:00:05]}  Rb2 {[%clk 0:00:05]} 68. Kd3 {[%clk 0:00:05]}  Kb3 {[%clk 0:00:05]} 69. Rf1 {[%clk 0:00:04]}  a4 {[%clk 0:00:06]} 70. Rc1 {[%clk 0:00:03]}  a3 {[%clk 0:00:05]} 71. Kd4 {[%clk 0:00:04]}  Rc2 {[%clk 0:00:05]} 72. Rb1+ {[%clk 0:00:03]}  Ka4 {[%clk 0:00:05]} 73. Rf1 {[%clk 0:00:03]}  a2 {[%clk 0:00:05]} 74. Kd3 {[%clk 0:00:03]}  Kb3 {[%clk 0:00:05]} 75. Rf8 {[%clk 0:00:03]}  Rc3+ {[%clk 0:00:05]} 76. Kd2 {[%clk 0:00:03]}  h1=Q {[%clk 0:00:04]} 77. Rb8+ {[%clk 0:00:03]}  Kc4 {[%clk 0:00:04]} 78. Rc8+ {[%clk 0:00:04]}  Kb4 {[%clk 0:00:04]} 79. Rb8+ {[%clk 0:00:04]}  Kc5 {[%clk 0:00:03]} 80. Rc8+ {[%clk 0:00:04]}  Kd6 {[%clk 0:00:04]} 81. Rxc3 {[%clk 0:00:03]}  a1=Q {[%clk 0:00:04]} 82. Rd3+ {[%clk 0:00:02]}  Ke5 {[%clk 0:00:03]} 83. Re3+ {[%clk 0:00:00]}  Qe4 {[%clk 0:00:04]} 0-1


[Site "https://www.chess.com"]